{"text_format":"1","workbook":"xlsx","n_sheets":4,"sheets":["CLASSIFICAÇÃO GERAL 2024","jan2025","fev2025","mar2025"],"not_rendered":{"charts":0,"images":2,"macros":1,"external_links":0,"defined_names":1,"comments":0,"pivot_tables":0},"unopened":[],"bounds":{"document_bytes":16777216,"sheet_cells":100000,"rows_first":2000,"rows_last":500,"rows_between":2000,"halvings":0,"cell_chars":16384,"cell_head_chars":4096},"cells_cut":0,"cells_raw":0,"read":"whole","date_system":"1900"}

{"sheet":"CLASSIFICAÇÃO GERAL 2024","index":0,"n_rows":128,"n_cols":5,"rows_kept":128,"cut":false,"hidden":false,"merged":[[0,0,0,4],[1,0,1,4]]}
["CLASSIFICAÇÃO GERAL ACPA – TEMPORADA DE VERÃO 2025 QUARTA"]
["COLEIRO FIBRA","Pássaro","Proprietário","Origem","Pontos"]
["POSIÇÃO","NOME DO PÁSSARO","NOME DO PROPRIETÁRIO","ORIGEM (CIDADE)","PONTUAÇÃO"]
["1º","AMOSTRADINHO","PAULINHO/ARTHUR","TRÊS RIOS",{"$f":"4+26+20+26+20+16+22","v":134}]
["2º","VENOM JÚNIOR","MURILO","TRÊS RIOS",{"$f":"26+16+24+12+8+22+4+14","v":126}]
["3º","RABO DE PEIXE","LUCIMAR/LUIZ HENRIQUE","TRÊS RIOS",{"$f":"12+22+26+24+22+6","v":112}]
["4º","PROFESSOR","RODRIGO GONÇALVES","PETRÓPOLIS",{"$f":"20+28+22+22","v":92}]
["5º","FAVELA","CABRITO/GABRIEL","MATIAS BARBOSA",{"$f":"30+30+28","v":88}]
["6º","GRILO","RODRIGO/BRUNO","PETRÓPOLIS",{"$f":"2+26+20+10+28","v":86}]
["7º","X VÍDEO","ERICK DINO/MARCELO","MATIAS BARBOSA",{"$f":"28+24+26","v":78}]
["8º","PÂNICO","JHONINHA/MARCELO","SENADOR CORTES",{"$f":"24+30+22","v":76}]
["9º","TREME TERRA","KLEBER/RODRIGO","AREAL",{"$f":"18+20+20+14","v":72}]
["10º","JAMELÃO","CH FAMÍLIA MINGAL","PARAÍBA DO SUL",{"$f":"18+20+18+12","v":68}]
["11º","TÁ FODA","GABRIEL BRUM","AVELAR",{"$f":"18+24+26","v":68}]
["12º","FILHÃO","RATINHO","VALENÇA",{"$f":"14+22+30","v":66}]
["13º","PELÉ","WILLIAN","TRÊS RIOS",{"$f":"8+26+26","v":60}]
["14º","TIROTEIO","ERICK/RUAN","MATIAS BARBOSA",{"$f":"30+30","v":60}]
["15º","MISTIÇO","SOLDADO","NOVA IGUAÇU",{"$f":"28+28","v":56}]
["16º","CARA PRETA","FÁBIO","TRÊS RIOS",{"$f":"14+16+10+14","v":54}]
["17º","BICO BRANCO FILHO","FAMÍLIA MINGAL","PARAÍBA DO SUL",{"$f":"24+28","v":52}]
["18º","CABALLO","GILSON PQD","SANTOS DUMONT",{"$f":"8+24+18","v":50}]
["19º","CORINGA","RUAN","MAR DE ESPANHA",{"$f":"28+20","v":48}]
["20º","FÓRMULA 1","REGINALDO","PETRÓPOLIS",{"$f":"14+18+16","v":48}]
["21º","BATYRA","JONAS/EMA","TRÊS RIOS",{"$f":"14+14+18","v":46}]
["22º","ROMÁRIO","MÁRCIO","PARAÍBA DO SUL",{"$f":"30+16","v":46}]
["23º","PIRATA","ERICK","MATIAS BARBOSA",{"$f":"28+14","v":42}]
["24º","BMW","JOÃO MARCOS","AREAL",{"$f":"8+30","v":38}]
["25º","ARMAGEDON","SANDRINHO","TRÊS RIOS",{"$f":"12+8+10","v":30}]
["26º","COISA LINDA","JUNINHO/MARCÃO","TRÊS RIOS",30]
["27º","JOIA RARA","JUNINHO","TRÊS RIOS",{"$f":"18+12","v":30}]
["28º","MÁGICO","ILSON","SÃO JOSÉ",30]
["29º","MAGNATA","JUNINHO PACHECO","TRÊS RIOS",30]
["30º","RELÂMPAGO","RUAN","MAR DE ESPANHA",30]
["31º","SAFADÃO","JHONINHA/MARCELO","SENADOR CORTES",30]
["32º","BOTA CARA","GABRIEL/DJ RODRIGO","PARAÍBA DO SUL",28]
["33º","ESTRESSADO","JHONINHA/MARCELO","SENADOR CORTES",28]
["34º","MACACO LOUCO","ILSON","SÃO JOSÉ",28]
["35º","MALUCO","ANDRÉ/DINO","PARAÍBA DO SUL",28]
["36º","MÁXIMO","PAULINHO/ARTHUR","TRÊS RIOS",{"$f":"10+18","v":28}]
["37º","BOLT","RUAN","MAR DE ESPANHA",26]
["38º","IMERSÃO","WATILA","JUIZ DE FORA",26]
["39º","MESTIÇO","JONAS RICARDO","TRÊS RIOS",26]
["40º","PROFESSOR","THIAGO","AREAL",26]
["41º","BARBA NEGRA","REINALDO","JUIZ DE FORA",24]
["42º","CAVIAR","BRUNO","TRÊS RIOS",{"$f":"4+20","v":24}]
["43º","CHUCKY","RODRIGO","RIO DE JANEIRO",{"$f":"8+16","v":24}]
["44º","DOIDO","RODRIGO/BRUNO","PETRÓPOLIS",24]
["45º","FARÃO","ANDRÉ LUIS/ERICK","PARAÍBA DO SUL",24]
["46º","PDH","MARCELO SOJUF","JUIZ DE FORA",24]
["47º","PEPE","EULER","TRÊS RIOS",{"$f":"2+22","v":24}]
["48º","REI DA RUA","ANDRÉ LUIS","PARAÍBA DO SUL",24]
["49º","TOMA JACK","CH (FAMÍLIA MINGAL)","PARAÍBA DO SUL",24]
["50º","CARIOQUINHA","JONAS RICARDO","TRÊS RIOS",22]
["51º","MARSHALL","DANIEL","JUIZ DE FORA",22]
["52º","PELADO","JONAS RICARDO","TRÊS RIOS",22]
["53º","PICA PAU","ADÃO","TRÊS RIOS",22]
["54º","DO BRONX","DOUGLAS/LUCAS","JUIZ DE FORA",{"$f":"10+10","v":20}]
["55º","JAGUAR","GILMAR","JUIZ DE FORA",20]
["56º","MARRETA","ROMÁRIO OLIVEIRA","PETROPOLIS",20]
["57º","OURO FINO","LEANDRO","TRÊS RIOS",20]
["58º","PROFETA","MARCELO","TRÊS RIOS",20]
["59º","BAIXARIA","FAMÍLIA HONORATO","PARAÍBA DO SUL",18]
["60º","BELGA","JONAS","TRÊS RIOS",18]
["61º","BESTEIRINHA","EULER","TRÊS RIOS",{"$f":"6+12","v":18}]
["62º","CAMISA 10","RUAN","MAR DE ESPANHA",18]
["63º","FÓRMULA 1","GILSON PQD","SANTOS DUMONT",{"$f":"4+14","v":18}]
["64º","RARIDADE","GUSTAVO","PARAÍBA DO SUL",{"$f":"6+12","v":18}]
["65º","WOLVERINE","ERICK DINO/RUAN","MATIAS BARBOSA",18]
["66º","CABALA","SANDRINHO","TRÊS RIOS",16]
["67º","CARTOLA","CABRITO/GABRIEL","MATIAS BARBOSA",16]
["68º","COMBATE","DOUGLAS/CABRITO","MATIAS BARBOSA",16]
["69º","FILHÃO","MARCÃO","JUIZ DE FORA",16]
["70º","HERÓI DE GUERRA","RODRIGO/BRUNO","PETRÓPOLIS",16]
["71º","MAGNATA","THIAGO","TRÊS RIOS",16]
["72º","NOTURNO","JHONINHA","SENADOR CORTES",16]
["73º","ATREVIDO","REGINALDO","PETRÓPOLIS",14]
["74º","CONFUSÃO","REGINALDO","PETRÓPOLIS",14]
["75º","FERRARI","JUNINHO","TRÊS RIOS",{"$f":"6+8","v":14}]
["76º","PARAFAL","MAURO JR","TRÊS RIOS",{"$f":"2+12","v":14}]
["77º","XARADA","HENRIQUE","PARAÍBA DO SUL",14]
["78º","FAIXA PRETA","ROMÁRIO","PARAÍBA DO SUL",12]
["79º","MANDEI","JUNINHO","TRÊS RIOS",12]
["80º","PALADINO","LUCAS","TRÊS RIOS",12]
["81º","PELEGRINO","DOUGLAS/SERGINHO","JUIZ DE FORA",12]
["82º","SCORPION","REGINALDO","PETRÓPOLIS",{"$f":"2+10","v":12}]
["83º","SPARTA","THIAGO FREITAS","AREAL",12]
["84º","7BELO","LORRAN","PETRÓPOLIS",10]
["85º","ABUSADO","ELVIS","JUIZ DE FORA",10]
["86º","MENINO DO MORRO","GABRIEL/VLADIMIR","PARAÍBA DO SUL",10]
["87º","SAL GROSSO","RAPHAEL","MATIAS BARBOSA",10]
["88º","TUBO","CABRITO/DOUGLAS","?",10]
["89º","WOLVERINE","PAULINHO/ARTHUR","TRÊS RIOS",10]
["90º","BEN10","FRANÇA","JUIZ DE FORA",8]
["91º","EMBAÇADO","MARCUS VINICIUS","JUIZ DE FORA",8]
["92º","FORASTEIRO","FAMÍLIA MINGAL","PARAÍBA DO SUL",8]
["93º","REI DOS REIS","THIAGO","?",8]
["94º","RISCA FACA","LEVI","TRÊS RIOS",8]
["95º","WOLVERINE","REGINALDO","PETRÓPOLIS",{"$f":"2+6","v":8}]
["96º","CHARADA","HENRIQUE","PARAÍBA DO SUL",6]
["97º","DELEGADO","REGINALDO","PETRÓPOLIS",6]
["98º","GAGUINHO","FABINHO","TRÊS RIOS",6]
["99º","MALUCO","FELIPE","TRÊS RIOS",{"$f":"4+2","v":6}]
["100º","PIRATA","JHONINHA/RUAN","SENADOR CORTES",6]
["101º","RAGNAR","THIAGO MARTINS","TRÊS RIOS",6]
["102º","SINISTRO","LEVI","TRÊS RIOS",6]
["103º","ZELDA","RODRIGO GONÇALVES","PETRÓPOLIS",6]
["104º","500 MILHAS","RICO","PATY DO ALFERES",4]
["105º","BAD BOY","THIAGO","AREAL",4]
["106º","GRÃO VIZIR","CICINHO","PARAÍBA DO SUL",4]
["107º","JOIA RARA","RENATO","JUIZ DE FORA",4]
["108º","RAGNAR","FERNANDO SIMÃO","PETRÓPOLIS",4]
["109º","TROVÃO","NALDO","TRÊS RIOS",4]
["110º","CARRETA","JONAS RICARDO","TRÊS RIOS",2]
["111º","ESCORPIÃO","REGINALDO","PETRÓPOLIS",2]
["112º","LOCOMOTIVA","CLOVIS","TRÊS RIOS",2]
["113º","SEM NOME","JANDERSON","TRÊS RIOS",2]
["114º"]
["115º"]
["116º"]
["117º"]
["118º"]
["119º"]
["120º"]
["121º"]
["122º"]
["123º"]
["124º"]
["125º"]

{"sheet":"jan2025","index":1,"n_rows":42,"n_cols":27,"rows_kept":42,"cut":false,"hidden":false,"merged":[[0,0,0,5],[0,7,0,12],[0,14,0,19],[0,21,0,26]]}
["08/01/2025 (QUARTA-FEIRA)",null,null,null,null,null,null,"15/01/2025 (QUARTA-FEIRA)",null,null,null,null,null,null,"22/01/2025 (QUARTA-FEIRA)",null,null,null,null,null,null,"29/01/2025 (QUARTA-FEIRA)"]
["POS.","PÁSSARO","PROPRIETÁRIO","ORIGEM","CANTOS","PONTOS",null,"POS.","PÁSSARO","PROPRIETÁRIO","ORIGEM","CANTOS","PONTOS",null,"POS.","PÁSSARO","PROPRIETÁRIO","ORIGEM","CANTOS","PONTOS",null,"POS.","PÁSSARO","PROPRIETÁRIO","ORIGEM","CANTOS","PONTOS"]
["1º","ROMÁRIO","MÁRCIO","PARAÍBA DO SUL",193,30,null,"1º","RELÂMPAGO","RUAN","MAR DE ESPANHA",212,30,null,"1º","TIROTEIO","ERICK/RUAN","MATIAS BARBOSA",221,30,null,"1º","MAGNATA","JUNINHO PACHECO","TRÊS RIOS",173,30]
["2º","PIRATA","ERICK","MATIAS BARBOSA",163,28,null,"2º","PROFESSOR","RODRIGO GONÇALVES","PETRÓPOLIS",173,28,null,"2º","MALUCO","ANDRÉ/DINO","PARAÍBA DO SUL",220,28,null,"2º","BICO BRANCO FILHO","FAMÍLIA MINGAL","PARAÍBA DO SUL",172,28]
["3º","VENOM JÚNIOR","MURILO","TRÊS RIOS",160,26,null,"3º","MESTIÇO","JONAS RICARDO","TRÊS RIOS",167,26,null,"3º","BOLT","RUAN","MAR DE ESPANHA",206,26,null,"3º","PELÉ","WILLIAM","TRÊS RIOS",160,26]
["4º","BARBA NEGRA","REINALDO","JUIZ DE FORA",159,24,null,"4º","BICO BRANCO FILHO","FAMÍLIA MINGAL","PARAÍBA DO SUL",166,24,null,"4º","REI DA RUA","ANDRÉ LUIS","PARAÍBA DO SUL",170,24,null,"4º","FARÃO","ANDRÉ LUIS/ERICK","PARAÍBA DO SUL",145,24]
["5º","MARSHALL","DANIEL","JUIZ DE FORA",145,22,null,"5º","CARIOQUINHA","JONAS RICARDO","TRÊS RIOS",157,22,null,"5º","PROFESSOR","RODRIGO GONÇALVES","PETRÓPOLIS",167,22,null,"5º","PROFESSOR","RODRIGO GONÇALVES","PETRÓPOLIS",143,22]
["6º","PROFESSOR","RODRIGO GONÇALVES","PETRÓPOLIS",140,20,null,"6º","MARRETA","ROMÁRIO OLIVEIRA","PETROPOLIS",146,20,null,"6º","TREME TERRA","RODRIGO/KLEBER","AREAL",156,20,null,"6º","TREME TERRA","KLEBER/RODRIGO","AREAL",122,20]
["7º","JAMELÃO","CH FAMÍLIA MINGAL","PARAÍBA DO SUL",137,18,null,"7º","TREME TERRA","KLEBER/RODRIGO","AREAL",141,18,null,"7º","JOIA RARA","JUNINHO","TRÊS RIOS",150,18,null,"7º","BELGA","JONAS","TRÊS RIOS",107,18]
["8º","CABALA","SANDRINHO","TRÊS RIOS",133,16,null,"8º","CARTOLA","CABRITO/GABRIEL","MATIAS BARBOSA",138,16,null,"8º","ROMÁRIO","MÁRCIO","PARAÍBA DO SUL",146,16,null,"8º","VENON JÚNIOR","MURILO","TRÊS RIOS",105,16]
["9º","CONFUSÃO","REGINALDO","PETRÓPOLIS",119,14,null,"9º","FILHÃO","RATINHO","VALENÇA",136,14,null,"9º","PIRATA","ERICK","MATIAS BARBOSA",126,14,null,"9º","FÓRMULA 1","GILSON","SANTOS DUMONT",100,14]
["10º","PALADINO","LUCAS","TRÊS RIOS",106,12,null,"10º","MANDEI","JUNINHO","TRÊS RIOS",136,12,null,"10º","SPARTA","THIAGO FREITAS","AREAL",122,12,null,"10º","ARMAGEDON","FABIEL","TRÊS RIOS",92,12]
["11º","ABUSADO","ELVIS","JUIZ DE FORA",105,10,null,"11º","MENINO DO MORRO","GABRIEL/VLADIMIR","PARAÍBA DO SUL",127,10,null,"11º","DO BRONX","DOUGLAS/LUCAS","JUIZ DE FORA",120,10,null,"11º","MÁXIMO","PAULINHO/ARTHUR","TRÊS RIOS",86,10]
["12º","PELÉ","WILLIAN","TRÊS RIOS",85,8,null,"12º","FORASTEIRO","FAMÍLIA MINGAL","PARAÍBA DO SUL",123,8,null,"12º","REI DOS REIS","THIAGO","?",118,8,null,"12º","RISCA FACA","LEVI","TRÊS RIOS",73,8]
["13º","DELEGADO","REGINALDO","PETRÓPOLIS",80,6,null,"13º","ZELDA","RODRIGO GONÇALVES","PETRÓPOLIS",114,6,null,"13º","PIRATA","JHONINHA/RUAN","SENADOR CORTES",115,6,null,"13º","BESTEIRINHA","EULER","TRÊS RIOS",72,6]
["14º","TROVÃO","NALDO","TRÊS RIOS",80,4,null,"14º","FÓRMULA 1","GILSON","SANTOS DUMONT",112,4,null,"14º","GRÃO VIZIR","CICINHO","PARAÍBA DO SUL",110,4,null,"14º","AMOSTRADINHO","PAULINHO/ARTHUR","TRÊS RIOS",37,4]
["15º","WOLVERINE","REGINALDO","PETRÓPOLIS",72,2,null,"15º","PEPE","EULER","TRÊS RIOS",99,2,null,"15º","GRILO","RODRIGO GONÇALVES","PETRÓPOLIS",102,2,null,"15º","SEM NOME","JANDERSON","TRÊS RIOS",35,2]
["16º","MÉXICO","WILLIAM","TRÊS RIOS",63,null,null,"16º","AGENTE 007","GILSON","SANTOS DUMONT",98,null,null,"16º","WOLVERINE","REGINALDO","PETRÓPOLIS",97,null,null,"16º"]
["17º","FÓRMULA 1","GILSON","SANTOS DUMONT",62,null,null,"17º","REI DOS REIS","THIAGO MARTINS","TRÊS RIOS",96,null,null,"17º","VELOZ","ALISSON","TRÊS RIOS",75,null,null,"17º"]
["18º","AMOSTRADINHO","PAULINHO","TRÊS RIOS",60,null,null,"18º","ROMÁRIO","MÁRCIO","PARAÍBA DO SUL",95,null,null,"18º",null,null,null,null,null,null,"18º"]
["19º","WOLVERINE","PAULINHO","TRÊS RIOS",55,null,null,"19º","SAGAT","GUSTAVO","PARAÍBA DO SUL",94,null,null,"19º",null,null,null,null,null,null,"19º"]
["20º","TUFÃO","RAFAEL","PETRÓPOLIS",53,null,null,"20º","ALUCINADO","RODRIGO GONÇALVES","PETRÓPOLIS",88,null,null,"20º",null,null,null,null,null,null,"20º"]
["21º","FÉ","ARTUR","TRÊS RIOS",50,null,null,"21º","PARDAL","FAMÍLIA MINGAL","PARAÍBA DO SUL",87,null,null,"21º",null,null,null,null,null,null,"21º"]
["22º","MATUÊ","CH FAMÍLIA MINGAL","PARAÍBA DO SUL",44,null,null,"22º","BICO","JULIO (FAMÍLIA MINGAL)","PARAÍBA DO SUL",86,null,null,"22º",null,null,null,null,null,null,"22º"]
["23º",null,null,null,null,null,null,"23º","AMOSTRADINHO","PAULINHO","TRÊS RIOS",85,null,null,"23º",null,null,null,null,null,null,"23º"]
["24º",null,null,null,null,null,null,"24º","VENON JÚNIOR","MURILO","TRÊS RIOS",80,null,null,"24º",null,null,null,null,null,null,"24º"]
["25º",null,null,null,null,null,null,"25º","WOLVERINE","PAULINHO","TRÊS RIOS",76,null,null,"25º",null,null,null,null,null,null,"25º"]
["26º",null,null,null,null,null,null,"26º","SELVAGEM","FAMÍLIA MINGAL","PARAÍBA DO SUL",70,null,null,"26º",null,null,null,null,null,null,"26º"]
["27º",null,null,null,null,null,null,"27º","DELEGADO","REGINALDO","PETRÓPOLIS",58,null,null,"27º",null,null,null,null,null,null,"27º"]
["28º",null,null,null,null,null,null,"28º","TRUQUE","REGINALDO","PETROPOLIS",50,null,null,"28º",null,null,null,null,null,null,"28º"]
["29º",null,null,null,null,null,null,"29º",null,null,null,null,null,null,"29º",null,null,null,null,null,null,"29º"]
["30º",null,null,null,null,null,null,"30º",null,null,null,null,null,null,"30º",null,null,null,null,null,null,"30º"]
["31º",null,null,null,null,null,null,"31º",null,null,null,null,null,null,"31º",null,null,null,null,null,null,"31º"]
["32º",null,null,null,null,null,null,"32º",null,null,null,null,null,null,"32º",null,null,null,null,null,null,"32º"]
["33º",null,null,null,null,null,null,"33º",null,null,null,null,null,null,"33º",null,null,null,null,null,null,"33º"]
["34º",null,null,null,null,null,null,"34º",null,null,null,null,null,null,"34º",null,null,null,null,null,null,"34º"]
["35º",null,null,null,null,null,null,"35º",null,null,null,null,null,null,"35º",null,null,null,null,null,null,"35º"]
["36º",null,null,null,null,null,null,"36º",null,null,null,null,null,null,"36º",null,null,null,null,null,null,"36º"]
["37º",null,null,null,null,null,null,"37º",null,null,null,null,null,null,"37º",null,null,null,null,null,null,"37º"]
["38º",null,null,null,null,null,null,"38º",null,null,null,null,null,null,"38º",null,null,null,null,null,null,"38º"]
["39º",null,null,null,null,null,null,"39º",null,null,null,null,null,null,"39º",null,null,null,null,null,null,"39º"]
["40º",null,null,null,null,null,null,"40º",null,null,null,null,null,null,"40º",null,null,null,null,null,null,"40º"]

{"sheet":"fev2025","index":2,"n_rows":42,"n_cols":27,"rows_kept":42,"cut":false,"hidden":false,"merged":[[0,0,0,5],[0,7,0,12],[0,14,0,19],[0,21,0,26]]}
["05/02/2025 (QUARTA-FEIRA)",null,null,null,null,null,null,"12/02/2025 (QUARTA-FEIRA)",null,null,null,null,null,null,"19/02/2025 (QUARTA-FEIRA)",null,null,null,null,null,null,"26/02/2025 (QUARTA-FEIRA)"]
["POS.","PÁSSARO","PROPRIETÁRIO","ORIGEM","CANTOS","PONTOS",null,"POS.","PÁSSARO","PROPRIETÁRIO","ORIGEM","CANTOS","PONTOS",null,"POS.","PÁSSARO","PROPRIETÁRIO","ORIGEM","CANTOS","PONTOS",null,"POS.","PÁSSARO","PROPRIETÁRIO","ORIGEM","CANTOS","PONTOS"]
["1º","FAVELA","CABRITO/GABRIEL","MATIAS BARBOSA",280,30,null,"1º","COISA LINDA","JUNINHO/MARCÃO","TRÊS RIOS",203,30,null,"1º","MÁGICO","ILSON","SÃO JOSÉ",163,30,null,"1º","PÂNICO","JHONINHA/MARCELO","SENADOR CORTES",216,30]
["2º","CORINGA","RUAN","MAR DE ESPANHA",241,28,null,"2º","ESTRESSADO","JHONINHA/MARCELO","SENADOR CORTES",184,28,null,"2º","MACACO LOUCO","ILSON","SÃO JOSÉ",153,28,null,"2º","X VÍDEO","DINO/MARCELO","MATIAS BARBOSA",193,28]
["3º","PELÉ","WILLIAM","TRÊS RIOS",160,26,null,"3º","GRILO","RODRIGO/BRUNO","TRÊS RIOS",180,26,null,"3º","AMOSTRADINHO","PAULINHO/ARTHUR","TRÊS RIOS",151,26,null,"3º","TÁ FODA","GABRIEL BRUM","AVELAR",119,26]
["4º","VENON JÚNIOR","MURILO","TRÊS RIOS",132,24,null,"4º","PÂNICO","JHONINHA/RUAN","SENADOR CORTES",170,24,null,"4º","TÁ FODA","GABRIEL BRUM","AVELAR",149,24,null,"4º","TOMA JACK","CH (FAMÍLIA MINGAL)","PARAÍBA DO SUL",118,24]
["5º","PICA PAU","ADÃO","TRÊS RIOS",126,22,null,"5º","FILHÃO","RATINHO","VALENÇA",160,22,null,"5º","PELADO","JONAS RICARDO","TRÊS RIOS",147,22,null,"5º","RABO DE PEIXE","LUCIMAR/LUIZ HENRIQUE","TRÊS RIOS",113,22]
["6º","JAMELÃO","CH (FAMÍLIA MINGAL)","PARAÍBA DO SUL",120,20,null,"6º","CORINGA","RUAN","MAR DE ESPANHA",154,20,null,"6º","GRILO","RODRIGO/BRUNO","PETRÓPOLIS",129,20,null,"6º","AMOSTRADINHO","PAULINHO/ARTHUR","TRÊS RIOS",110,20]
["7º","TÁ FODA","GABRIEL BRUM","AVELAR",116,18,null,"7º","CAMISA 10","RUAN","MAR DE ESPANHA",135,18,null,"7º","MÁXIMO","PAULINHO/ARTHUR","TRÊS RIOS",126,18,null,"7º","JAMELÃO","CH (FAMÍLIA MINGAL)","PARAÍBA DO SUL",108,18]
["8º","MAGNATA","THIAGO","TRÊS RIOS",107,16,null,"8º","FILHÃO","MARCÃO","JUIZ DE FORA",125,16,null,"8º","CHUCKY","RODRIGO","RIO DE JANEIRO",118,16,null,"8º","NOTURNO","JHONINHA","SENADOR CORTES",102,16]
["9º","CARA PRETA","FÁBIO","TRÊS RIOS",101,14,null,"9º","BATYRA","JONAS/EMA","TRÊS RIOS",121,14,null,"9º","ATREVIDO","REGINALDO","PETRÓPOLIS",111,14,null,"9º","BATYRA","JONAS RICARDO","TRÊS RIOS",96,14]
["10º","PELEGRINO","DOUGLAS/SERGINHO","JUIZ DE FORA",93,12,null,"10º","VENON JÚNIOR","MURILO","TRÊS RIOS",118,12,null,"10º","RABO DE PEIXE","LUCIMAR/LUIZ HENRIQUE","TRÊS RIOS",102,12,null,"10º","BESTEIRINHA","EULER","TRÊS RIOS",96,12]
["11º","WOLVERINE","PAULINHO/ARTHUR","TRÊS RIOS",81,10,null,"11º","DO BRONX","DOUGLAS/LUCAS","JUIZ DE FORA",110,10,null,"11º","ARMAGEDON","SANDRINHO","TRÊS RIOS",98,10,null,"11º","SAL GROSSO","RAPHAEL","MATIAS BARBOSA",95,10]
["12º","ARMAGEDON","FABIEL","TRÊS RIOS",80,8,null,"12º","CHUCKY","RODRIGO","TEIXEIRA",110,8,null,"12º","VENON JÚNIOR","MURILO","TRÊS RIOS",89,8,null,"12º","EMBAÇADO","MARCUS VINICIUS","JUIZ DE FORA",87,8]
["13º","WOLVERINE","REGINALDO","PETRÓPOLIS",34,6,null,"13º","SINISTRO","LEVI","TRÊS RIOS",104,6,null,"13º","FERRARI","GUSTAVO","PARAÍBA DO SUL",88,6,null,"13º","RAGNAR","THIAGO MARTINS","TRÊS RIOS",80,6]
["14º",null,null,null,null,null,null,"14º","500 MILHAS","RICO","PATY DO ALFERES",101,4,null,"14º","MALUCO","FELIPE","TRÊS RIOS",86,4,null,"14º","JOIA RARA","RENATO","JUIZ DE FORA",75,4]
["15º",null,null,null,null,null,null,"15º","LOCOMOTIVA","CLOVIS","TRÊS RIOS",84,2,null,"15º","CARRETA","JONAS RICARDO","TRÊS RIOS",43,2,null,"15º","MALUCO","FELIPE","TRÊS RIOS",62,2]
["16º",null,null,null,null,null,null,"16º","CABALLO","GILSON","SANTOS DUMONT",82,null,null,"16º",null,null,null,null,null,null,"16º","VENOM JÚNIOR","MURILO","TRÊS RIOS",62]
["17º",null,null,null,null,null,null,"17º","MAGO NEGRO","CLOVIS","TRÊS RIOS",66,null,null,"17º",null,null,null,null,null,null,"17º","SEBASTIÃO","ALISSON","TRÊS RIOS",25]
["18º",null,null,null,null,null,null,"18º","MAGNATA","EDGARD","?",48,null,null,"18º",null,null,null,null,null,null,"18º"]
["19º",null,null,null,null,null,null,"19º","INVOCADO","MAICON","TRÊS RIOS",37,null,null,"19º",null,null,null,null,null,null,"19º"]
["20º",null,null,null,null,null,null,"20º","CARRETA","JONAS","TRÊS RIOS",20,null,null,"20º",null,null,null,null,null,null,"20º"]
["21º",null,null,null,null,null,null,"21º",null,null,null,null,null,null,"21º",null,null,null,null,null,null,"21º"]
["22º",null,null,null,null,null,null,"22º",null,null,null,null,null,null,"22º",null,null,null,null,null,null,"22º"]
["23º",null,null,null,null,null,null,"23º",null,null,null,null,null,null,"23º",null,null,null,null,null,null,"23º"]
["24º",null,null,null,null,null,null,"24º",null,null,null,null,null,null,"24º",null,null,null,null,null,null,"24º"]
["25º",null,null,null,null,null,null,"25º",null,null,null,null,null,null,"25º",null,null,null,null,null,null,"25º"]
["26º",null,null,null,null,null,null,"26º",null,null,null,null,null,null,"26º",null,null,null,null,null,null,"26º"]
["27º",null,null,null,null,null,null,"27º",null,null,null,null,null,null,"27º",null,null,null,null,null,null,"27º"]
["28º",null,null,null,null,null,null,"28º",null,null,null,null,null,null,"28º",null,null,null,null,null,null,"28º"]
["29º",null,null,null,null,null,null,"29º",null,null,null,null,null,null,"29º",null,null,null,null,null,null,"29º"]
["30º",null,null,null,null,null,null,"30º",null,null,null,null,null,null,"30º",null,null,null,null,null,null,"30º"]
["31º",null,null,null,null,null,null,"31º",null,null,null,null,null,null,"31º",null,null,null,null,null,null,"31º"]
["32º",null,null,null,null,null,null,"32º",null,null,null,null,null,null,"32º",null,null,null,null,null,null,"32º"]
["33º",null,null,null,null,null,null,"33º",null,null,null,null,null,null,"33º",null,null,null,null,null,null,"33º"]
["34º",null,null,null,null,null,null,"34º",null,null,null,null,null,null,"34º",null,null,null,null,null,null,"34º"]
["35º",null,null,null,null,null,null,"35º",null,null,null,null,null,null,"35º",null,null,null,null,null,null,"35º"]
["36º",null,null,null,null,null,null,"36º",null,null,null,null,null,null,"36º",null,null,null,null,null,null,"36º"]
["37º",null,null,null,null,null,null,"37º",null,null,null,null,null,null,"37º",null,null,null,null,null,null,"37º"]
["38º",null,null,null,null,null,null,"38º",null,null,null,null,null,null,"38º",null,null,null,null,null,null,"38º"]
["39º",null,null,null,null,null,null,"39º",null,null,null,null,null,null,"39º",null,null,null,null,null,null,"39º"]
["40º",null,null,null,null,null,null,"40º",null,null,null,null,null,null,"40º",null,null,null,null,null,null,"40º"]

{"sheet":"mar2025","index":3,"n_rows":42,"n_cols":34,"rows_kept":42,"cut":false,"hidden":false,"merged":[[0,0,0,5],[0,7,0,12],[0,14,0,19],[0,21,0,26],[0,28,0,33]]}
["04/03/2025 (TERÇA-FEIRA)",null,null,null,null,null,null,"05/03/2025 (QUARTA-FEIRA)",null,null,null,null,null,null,"12/03/2025 (QUARTA-FEIRA)",null,null,null,null,null,null,"19/03/2025 (QUARTA-FEIRA)",null,null,null,null,null,null,"26/03/2025 (QUARTA-FEIRA)"]
["POS.","PÁSSARO","PROPRIETÁRIO","ORIGEM","CANTOS","PONTOS",null,"POS.","PÁSSARO","PROPRIETÁRIO","ORIGEM","CANTOS","PONTOS",null,"POS.","PÁSSARO","PROPRIETÁRIO","ORIGEM","CANTOS","PONTOS",null,"POS.","PÁSSARO","PROPRIETÁRIO","ORIGEM","CANTOS","PONTOS",null,"POS.","PÁSSARO","PROPRIETÁRIO","ORIGEM","CANTOS","PONTOS"]
["1º","TIROTEIO","ERICK/RUAN","MATIAS BARBOSA",277,30,null,"1º","FAVELA","CABRITO/GABRIEL","MATIAS BARBOSA",178,30,null,"1º","SAFADÃO","JHONINHA/MARCELO","SENADOR CORTES",216,30,null,"1º","BMW","JOÃO MARCOS","AREAL",162,30,null,"1º","FILHÃO","RATINHO","VALENÇA",213,30]
["2º","BOTA CARA","GABRIEL/DJ RODRIGO","PARAÍBA DO SUL",169,28,null,"2º","GRILO","RODRIGO/BRUNO","PETRÓPOLIS",176,28,null,"2º","FAVELA","CABRITO/GABRIEL","MATIAS BARBOSA",184,28,null,"2º","MISTIÇO","SOLDADO","NOVA IGUAÇU",153,28,null,"2º","MISTIÇO","SOLDADO","NOVA IGUAÇU",165,28]
["3º","RABO DE PEIXE","LUCIMAR/LUIZ HENRIQUE","TRÊS RIOS",166,26,null,"3º","AMOSTRADINHO","PAULINHO/ARTHUR","TRÊS RIOS",130,26,null,"3º","X VÍDEO","DINO/MARCELO","MATIAS BARBOSA",180,26,null,"3º","IMERSÃO","WATILA","JUIZ DE FORA",138,26,null,"3º","PROFESSOR","THIAGO","AREAL",132,26]
["4º","X VÍDEO","ERICK/MARCELO","MATIAS BARBOSA",164,24,null,"4º","CABALLO","GILSON","SANTOS DUMONT",125,24,null,"4º","RABO DE PEIXE","LUCIMAR/LUIZ HENRIQUE","TRÊS RIOS",173,24,null,"4º","DOIDO","RODRIGO/BRUNO","PETRÓPOLIS",128,24,null,"4º","PDH","MARCELO SOJUF","JUIZ DE FORA",124,24]
["5º","PEPE","EULER","TRÊS RIOS",158,22,null,"5º","VENON JÚNIOR","MURILO","TRÊS RIOS",114,22,null,"5º","PÂNICO","JHONINHA/MARCELO","SENADOR CORTES",160,22,null,"5º","RABO DE PEIXE","LUCIMAR/LUIZ HENRIQUE","TRÊS RIOS",128,22,null,"5º","AMOSTRADINHO","ARTHUR","TRÊS RIOS",117,22]
["6º","PROFETA","MARCELO","TRÊS RIOS",154,20,null,"6º","JAGUAR","GILMAR","JUIZ DE FORA",109,20,null,"6º","AMOSTRADINHO","ARTHUR/PAULINHO","TRÊS RIOS",152,20,null,"6º","CAVIAR","BRUNO","TRÊS RIOS",112,20,null,"6º","OURO FINO","LEANDRO","TRÊS RIOS",107,20]
["7º","BAIXARIA","FAMÍLIA HONORATO","PARAÍBA DO SUL",145,18,null,"7º","BATYRA","JONAS RICARDO","TRÊS RIOS",107,18,null,"7º","WOLVERINE","DINO/RUAN","MATIAS BARBOSA",140,18,null,"7º","FÓRMULA 1","REGINALDO","PETRÓPOLIS",107,18,null,"7º","CABALLO","PQD","SANTOS DUMONT",106,18]
["8º","CARA PRETA","FÁBIO","TRÊS RIOS",134,16,null,"8º","HERÓI DE GUERRA","RODRIGO/BRUNO","PETRÓPOLIS",100,16,null,"8º","COMBATE","DOUGLAS/CABRITO","MATIAS BARBOSA",121,16,null,"8º","AMOSTRADINHO","PAULINHO/ARTHUR","TRÊS RIOS",107,16,null,"8º","FORMULA 1","REGINALDO","PETRÓPOLIS",104,16]
["9º","XARADA","HENRIQUE","PARAÍBA DO SUL",124,14,null,"9º","TREME TERRA","KLEBER","AREAL",92,14,null,"9º","FÓRMULA 1","REGINALDO","PETRÓPOLIS",114,14,null,"9º","CARA PRETA","FÁBIO","TRÊS RIOS",100,14,null,"9º","VENON JÚNIOR","MURILO","TRÊS RIOS",91,14]
["10º","JAMELÃO","FAMÍLIA MINGAL","PARAÍBA DO SUL",116,12,null,"10º","PARAFAL","MAURO JR","TRÊS RIOS",75,12,null,"10º","JOIA RARA","JUNINHO","TRÊS RIOS",113,12,null,"10º","FAIXA PRETA","ROMÁRIO","PARAÍBA DO SUL",96,12,null,"10º","RARIDADE","GUSTAVO","PARAÍBA DO SUL",86,12]
["11º","GRILO","RODRIGO/BRUNO","PETRÓPOLIS",114,10,null,"11º","TUBO","CABRITO/DOUGLAS","?",68,10,null,"11º","CARA PRETA","FÁBIO","TRÊS RIOS",112,10,null,"11º","7BELO","LORRAN","PETRÓPOLIS",87,10,null,"11º","SCORPION","REGINALDO","PETRÓPOLIS",75,10]
["12º","CABALLO","GILSON","SANTOS DUMONT",106,8,null,"12º",null,null,null,null,null,null,"12º","BMW","JOÃO MARCOS","PETRÓPOLIS",111,8,null,"12º","BEN10","FRANÇA","JUIZ DE FORA",78,8,null,"12º","FERRARI","JUNINHO","TRÊS RIOS",70,8]
["13º","GAGUINHO","FABINHO","TRÊS RIOS",103,6,null,"13º",null,null,null,null,null,null,"13º","CHARADA","HENRIQUE","PARAÍBA DO SUL",97,6,null,"13º","RARIDADE","GUSTAVO","PARAÍBA DO SUL",57,6,null,"13º","RABO DE PEIXE","LUCIMAR/LUIZ HENRIQUE","TRÊS RIOS",61,6]
["14º","RAGNAR","FERNANDO SIMÃO","PETRÓPOLIS",102,4,null,"14º",null,null,null,null,null,null,"14º","CAVIAR","BRUNO","TRÊS RIOS",96,4,null,"14º","VENON JÚNIOR","MURILO","TRÊS RIOS",53,4,null,"14º","BAD BOY","THIAGO","AREAL",50,4]
["15º","PARAFAL","MAURO JR","TRÊS RIOS",88,2,null,"15º",null,null,null,null,null,null,"15º","SCORPION","REGINALDO","PETRÓPOLIS",84,2,null,"15º","ESCORPIÃO","REGINALDO","PETRÓPOLIS",43,2,null,"15º"]
["16º","JIRAYA","GABRIEL/TIAGO CORREA","PARAÍBA DO SUL",81,null,null,"16º",null,null,null,null,null,null,"16º","FREE FIRE","ALISSON","TRÊS RIOS",80,null,null,"16º","FREE FIRE","ALISSON","TRÊS RIOS",35,null,null,"16º"]
["17º","TOMA JACK","FAMÍLIA MINGAL","PARAÍBA DO SUL",81,null,null,"17º",null,null,null,null,null,null,"17º","ARMAGEDON","SANDRINHO","TRÊS RIOS",80,null,null,"17º",null,null,null,null,null,null,"17º"]
["18º","MACACO LOUCO","PATRICK GABRIEL","TRÊS RIOS",81,null,null,"18º",null,null,null,null,null,null,"18º","BEN 10","DINO/ALESSANDRO","MATIAS BARBOSA",75,null,null,"18º",null,null,null,null,null,null,"18º"]
["19º","TREME TERRA","KLEBER","AREAL",80,null,null,"19º",null,null,null,null,null,null,"19º","FERRARI","GUSTAVO","PARAÍBA DO SUL",73,null,null,"19º",null,null,null,null,null,null,"19º"]
["20º","BICO BRANCO","HENRIQUE","PARAÍBA DO SUL",79,null,null,"20º",null,null,null,null,null,null,"20º","SEDEX","NATHAN","LEVY GASPARIAN",63,null,null,"20º",null,null,null,null,null,null,"20º"]
["21º","PARDAL","FAMÍLIA MINGAL","PARAÍBA DO SUL",77,null,null,"21º",null,null,null,null,null,null,"21º",null,null,null,null,null,null,"21º",null,null,null,null,null,null,"21º"]
["22º","NOTA 1.000","SANDRINHO","TRÊS RIOS",75,null,null,"22º",null,null,null,null,null,null,"22º",null,null,null,null,null,null,"22º",null,null,null,null,null,null,"22º"]
["23º","SEM NOME","GILSON","SANTOS DUMONT",71,null,null,"23º",null,null,null,null,null,null,"23º",null,null,null,null,null,null,"23º",null,null,null,null,null,null,"23º"]
["24º","MAGNATA","THIAGO/EDGARD","TRÊS RIOS",50,null,null,"24º",null,null,null,null,null,null,"24º",null,null,null,null,null,null,"24º",null,null,null,null,null,null,"24º"]
["25º","SEDEX","NATAN","LEVY GASPARIAN",42,null,null,"25º",null,null,null,null,null,null,"25º",null,null,null,null,null,null,"25º",null,null,null,null,null,null,"25º"]
["26º","BOLT","VITINHO","MATIAS BARBOSA",30,null,null,"26º",null,null,null,null,null,null,"26º",null,null,null,null,null,null,"26º",null,null,null,null,null,null,"26º"]
["27º","ASTRO","DHACO","PARAÍBA DO SUL",23,null,null,"27º",null,null,null,null,null,null,"27º",null,null,null,null,null,null,"27º",null,null,null,null,null,null,"27º"]
["28º",null,null,null,null,null,null,"28º",null,null,null,null,null,null,"28º",null,null,null,null,null,null,"28º",null,null,null,null,null,null,"28º"]
["29º",null,null,null,null,null,null,"29º",null,null,null,null,null,null,"29º",null,null,null,null,null,null,"29º",null,null,null,null,null,null,"29º"]
["30º",null,null,null,null,null,null,"30º",null,null,null,null,null,null,"30º",null,null,null,null,null,null,"30º",null,null,null,null,null,null,"30º"]
["31º",null,null,null,null,null,null,"31º",null,null,null,null,null,null,"31º",null,null,null,null,null,null,"31º",null,null,null,null,null,null,"31º"]
["32º",null,null,null,null,null,null,"32º",null,null,null,null,null,null,"32º",null,null,null,null,null,null,"32º",null,null,null,null,null,null,"32º"]
["33º",null,null,null,null,null,null,"33º",null,null,null,null,null,null,"33º",null,null,null,null,null,null,"33º",null,null,null,null,null,null,"33º"]
["34º",null,null,null,null,null,null,"34º",null,null,null,null,null,null,"34º",null,null,null,null,null,null,"34º",null,null,null,null,null,null,"34º"]
["35º",null,null,null,null,null,null,"35º",null,null,null,null,null,null,"35º",null,null,null,null,null,null,"35º",null,null,null,null,null,null,"35º"]
["36º",null,null,null,null,null,null,"36º",null,null,null,null,null,null,"36º",null,null,null,null,null,null,"36º",null,null,null,null,null,null,"36º"]
["37º",null,null,null,null,null,null,"37º",null,null,null,null,null,null,"37º",null,null,null,null,null,null,"37º",null,null,null,null,null,null,"37º"]
["38º",null,null,null,null,null,null,"38º",null,null,null,null,null,null,"38º",null,null,null,null,null,null,"38º",null,null,null,null,null,null,"38º"]
["39º",null,null,null,null,null,null,"39º",null,null,null,null,null,null,"39º",null,null,null,null,null,null,"39º",null,null,null,null,null,null,"39º"]
["40º",null,null,null,null,null,null,"40º",null,null,null,null,null,null,"40º",null,null,null,null,null,null,"40º",null,null,null,null,null,null,"40º"]